Workbook

Sheet BIDTAB
A1: Description: 556 kcmil 125 mil Covered Wire
A2: Specification No. PT20-0190N
A3: Submittal Deadline: June 18, 2020
E5: General Pacific - A1 | G5: General Pacific | I5: American Wire Group - | K5: American Wire Group - | M5: Anixter - Southwire | O5: Anixter - General Cable
I6: Compressed Conductors | K6: Round Conductors
A7: Item | B7: Description | C7: Unit | D7: Quantity | E7: Unit Price | F7: Amount | G7: Unit Price | H7: Amount | I7: Unit Price | J7: Amount | K7: Unit Price | L7: Amount | M7: Unit Price | N7: Amount | O7: Unit Price | P7: Amount
A8: 1 | B8: Wire, 556KCM AAC, Covered (on Tacoma Power owned reels) | C8: FT | D8: 25000 | G8: 1.318 | H8: =G8*D8 -> 32950 | I8: 1.362 | J8: =I8*D8 -> 34050 | K8: 1.47 | L8: =K8*D8 -> 36750
A9: A1 | B9: Wire, 556KCM AAC, Covered (on non-returnable steel reels) | C9: FT | D9: 25000 | E9: 1.237 | F9: =E9*D9 -> 30925
B11: Sub-Total Bid Items | F11: =SUM(F8:F9) -> 30925 | H11: =SUM(H8:H9) -> 32950 | J11: =SUM(J8:J9) -> 34050 | L11: =SUM(L8:L9) -> 36750 | N11: =SUM(N8:N9) -> 0 | P11: =SUM(P8:P9) -> 0
B13: 10.2% Sales Tax | F13: =F11*0.102 -> 3154.35 | H13: =H11*0.102 -> 3360.9 | J13: =J11*0.102 -> 3473.1 | L13: =L11*0.102 -> 3748.5 | N13: =N11*0.102 -> 0 | P13: =P11*0.102 -> 0
B15: GRAND TOTAL | F15: =F11+F13 -> 34079.35 | H15: =H11+H13 -> 36310.9 | J15: =J11+J13 -> 37523.1 | L15: =L11+L13 -> 40498.5 | N15: =N11+N13 -> 0 | P15: =P11+P13 -> 0
E16: Alternate Low Bid | G16: Low Bid | I16: A1 = same price | K16: A1 = same price | M16: Non-responsive | O16: Non-responsive
B18: Notes:
B19: Anixter (Southwire) - Exception taken to pricing terms
B20: Anixter (General Cable) - Unable to provide requested quantity
